bitfinex/quotes_SOLUSD_20220211
["timestamp","ask_amount","ask_price","bid_price","bid_amount"]
[1644591874283,4.654,107.45,107.39,11.16]
[1644591874481,4.654,107.45,107.37,11.16]
[1644591874880,18.6267,107.45,107.37,11.16]
[1644591875080,23.09252098,107.44,107.37,58.83298827]
[1644591875281,4.655,107.43,107.37,58.83298827]
[1644591875780,11.16,107.49,107.37,58.83298827]
[1644591875781,4.655,107.49,107.38,2.38366791]
[1644591875982,13.9678,107.49,107.39,11.16]
[1644591876184,76.8164,107.5,107.4,4.652]
[1644591876382,76.8164,107.5,107.4,18.19566791]
[1644591876681,36.82739592,107.49,107.41,43.27311628]
[1644591876884,41.47939592,107.49,107.42,11.16]
[1644591877082,36.82739592,107.49,107.42,11.16]
[1644591877287,36.82739592,107.49,107.43,46.45190229]
[1644591878682,36.82739592,107.49,107.42,11.16]
[1644591878884,36.82739592,107.49,107.42,11.41]
[1644591879585,36.82739592,107.49,107.43,47.80996583]
[1644591879988,36.82739592,107.49,107.42,11.41]
[1644591880185,4.652,107.48,107.42,11.41]
[1644591880387,50.79419592,107.49,107.42,11.41]
[1644591881186,50.79419592,107.49,107.42,11.16]
[1644591881384,10.652,107.48,107.38,7.03566791]
[1644591881589,10.652,107.48,107.4,0.25]
[1644591881590,13.9705,107.46,107.4,0.25]
[1644591882186,25.35391607,107.45,107.38,4.654]
[1644591882488,30.00791607,107.45,107.38,4.654]
[1644591882683,43.98091607,107.45,107.38,4.654]
[1644591882884,2.38366791,107.44,107.32,11.16]
[1644591883085,4.656,107.43,107.32,11.16]
[1644591883285,36.82739592,107.42,107.32,11.16]
[1644591883487,25.35391607,107.4,107.31,45.69651276]
[1644591883785,13.9797,107.39,107.31,45.94651276]
[1644591883984,34.20827017,107.38,107.31,45.94651276]
[1644591885185,34.20827017,107.38,107.31,50.60351276]
[1644591885392,13.9797,107.39,107.31,57.10651276]
[1644591885586,4.657,107.44,107.32,4.657]
[1644591885785,6.0,107.43,107.34,111.8]
[1644591886187,10.656,107.42,107.34,0.25]
[1644591886388,38.68780632,107.41,107.34,36.05455302]
[1644591886787,19.9758,107.42,107.34,36.30455302]
[1644591886987,6.0,107.42,107.35,15.816]
[1644591887189,45.6145,107.46,107.35,22.066]
[1644591887389,45.6145,107.46,107.36,2.38366791]
[1644591887593,45.6145,107.46,107.37,15.815]
[1644591887787,114.38500413,107.47,107.38,36.82296294]
[1644591887990,36.64780413,107.47,107.39,15.814]
[1644591888190,36.64780413,107.47,107.4,48.71184874]
[1644591888390,36.64780413,107.47,107.4,59.87184874]
[1644591888588,36.64780413,107.47,107.4,62.50551665]
[1644591888789,36.64780413,107.47,107.4,60.12184874]
[1644591888989,36.64780413,107.47,107.4,59.87184874]
[1644591889191,4.652,107.46,107.4,59.87184874]
[1644591889615,50.61670413,107.47,107.4,60.12184874]
[1644591889790,13.9689,107.47,107.4,60.12184874]
[1644591889992,13.9689,107.47,107.4,62.50551665]
[1644591890592,13.9672,107.49,107.4,76.47221665]
[1644591890794,62.65364809,107.49,107.4,76.47221665]
[1644591890991,48.68644809,107.49,107.4,76.47221665]
[1644591891792,48.68644809,107.49,107.41,4.652]
[1644591891992,48.68644809,107.49,107.43,43.36643996]
[1644591892194,48.68644809,107.49,107.43,43.61643996]
[1644591893095,37.8265,107.5,107.43,43.61643996]
[1644591893295,37.8265,107.5,107.43,48.26843996]
[1644591893496,23.8616,107.5,107.43,43.61643996]
[1644591893693,136.0229,107.52,107.43,54.77643996]
[1644591893694,61.1802,107.52,107.43,54.77643996]
[1644591893893,47.2171,107.52,107.44,4.652]
[1644591894094,89.72980641,107.52,107.45,54.38818258]
[1644591894298,0.03430353,107.54,107.46,4.651]
[1644591894494,5.96416022,107.55,107.46,25.119]
[1644591894695,4.68530353,107.55,107.46,25.119]
[1644591894896,19.9595,107.54,107.42,2.38366791]
[1644591895095,4.652,107.53,107.42,2.38366791]
[1644591895295,1.31316022,107.52,107.38,4.652]
[1644591895496,15.77287888,107.52,107.39,11.16]
[1644591895698,99.24266022,107.51,107.39,25.1279]
[1644591895896,42.05352769,107.5,107.4,39.97693315]
[1644591896096,56.02082769,107.5,107.4,51.13693315]
[1644591897323,20.1277843,107.48,107.4,65.35293315]
[1644591897522,20.1277843,107.48,107.4,65.10293315]
[1644591897721,20.1277843,107.48,107.4,51.13693315]
[1644591898824,34.0952843,107.48,107.4,51.38693315]
[1644591899324,13.9675,107.48,107.4,51.38693315]
[1644591899523,4.652,107.5,107.4,53.77060106]
[1644591899725,13.963,107.52,107.43,13.9617]
[1644591899925,13.963,107.52,107.44,15.812]
[1644591900224,0.03430353,107.53,107.44,16.062]
[1644591900426,4.651,107.52,107.45,42.53973254]
[1644591900624,22.25176984,107.51,107.43,2.38366791]
[1644591900831,13.966,107.49,107.41,8.38366791]
[1644591901026,4.652,107.48,107.39,16.35146791]
[1644591901325,4.652,107.48,107.4,6.0]
[1644591901524,4.652,107.5,107.41,11.16]
[1644591901724,23.56493006,107.51,107.41,57.12279199]
[1644591901927,22.25176984,107.51,107.42,2.38366791]
[1644591902125,22.25176984,107.51,107.44,48.20527713]
[1644591902325,66.8623,107.52,107.45,11.16]
[1644591902526,13.9629,107.52,107.45,11.16]
[1644591902727,4.651,107.51,107.45,11.41]
[1644591902925,13.9629,107.52,107.45,11.41]
[1644591903327,4.652,107.53,107.46,35.59070165]
[1644591903328,66.92391443,107.53,107.46,35.59070165]
[1644591903531,18.6125,107.53,107.45,25.1198]
[1644591903725,6.0,107.52,107.42,11.16]
[1644591903926,4.652,107.51,107.39,4.652]
[1644591904127,5.96516022,107.51,107.38,11.16]
[1644591904328,17.12516022,107.51,107.36,14.85450348]
[1644591904528,17.12516022,107.51,107.36,48.53834872]
[1644591904529,48.12054871,107.48,107.36,48.53834872]
[1644591904736,14.06076328,107.46,107.36,46.15468081]
[1644591904936,4.655,107.45,107.36,46.15468081]
[1644591905136,41.02304008,107.44,107.36,46.15468081]
[1644591905738,54.99744008,107.44,107.36,46.15468081]
[1644591905945,59.65244008,107.44,107.36,46.15468081]
[1644591906838,54.99744008,107.44,107.36,46.15468081]
[1644591907038,13.9744,107.44,107.36,46.15468081]
[1644591907240,4.655,107.46,107.37,4.655]
[1644591907241,13.9705,107.46,107.37,4.655]
[1644591907440,13.9705,107.46,107.37,15.815]
[1644591907640,13.9705,107.46,107.37,16.065]
[1644591908043,36.67953434,107.45,107.38,40.00412562]
[1644591908244,13.9722,107.44,107.37,4.655]
[1644591908447,4.655,107.43,107.35,111.8]
[1644591908641,4.655,107.43,107.34,4.655]
[1644591908842,7.03966791,107.44,107.31,1.31083557]
[1644591909048,4.657,107.42,107.3,124.27083557]
[1644591909246,25.50177765,107.41,107.31,46.12455108]
[1644591909644,72.22177765,107.41,107.31,46.12455108]
[1644591910146,86.19917765,107.41,107.31,46.12455108]
[1644591910347,36.67953434,107.39,107.31,46.37455108]
[1644591910950,36.67953434,107.39,107.31,46.12455108]
[1644591911346,50.65883434,107.39,107.31,46.12455108]
[1644591912347,50.65883434,107.39,107.31,46.37455108]
[1644591912747,50.65883434,107.39,107.31,48.75821899]
[1644591912947,36.67953434,107.39,107.31,62.73661899]
[1644591913148,13.9773,107.41,107.31,62.73661899]
[1644591913352,24.686,107.42,107.31,73.89661899]
[1644591913568,24.686,107.42,107.32,14.67365688]
[1644591913748,78.7398,107.46,107.33,11.16]
[1644591913952,13.972,107.45,107.35,13.9718]
[1644591914152,54.03566067,107.45,107.36,35.42132918]
[1644591914551,49.38066067,107.45,107.36,35.67132918]
[1644591914750,49.38066067,107.45,107.37,2.38366791]
[1644591915050,49.38066067,107.45,107.38,47.89381744]
[1644591915875,49.38066067,107.45,107.37,2.38366791]
[1644591916252,4.655,107.44,107.37,2.38366791]
[1644591916454,49.38066067,107.45,107.37,2.38366791]
[1644591916651,18.6282,107.44,107.35,11.16]
[1644591916851,18.6282,107.44,107.36,48.12863478]
[1644591917057,26.77265132,107.43,107.36,48.12863478]
[1644591918056,40.74625132,107.43,107.36,48.12863478]
[1644591918254,40.74625132,107.43,107.34,13.9736]
[1644591918462,40.74625132,107.43,107.33,25.136]
[1644591918463,4.656,107.42,107.33,25.136]
[1644591918666,4.656,107.42,107.32,7.03966791]
[1644591918667,6.0,107.42,107.32,7.03966791]
[1644591918864,6.0,107.42,107.31,1.33483557]
[1644591918865,4.656,107.41,107.31,0.024]
[1644591919062,4.656,107.41,107.3,114.20766791]
[1644591919265,35.40866067,107.4,107.31,48.13313629]
[1644591919462,4.657,107.39,107.31,48.15713629]
[1644591919666,13.9815,107.37,107.31,48.13313629]
[1644591920064,35.40866067,107.36,107.31,48.13313629]
[1644591920463,35.40866067,107.36,107.3,111.824]
[1644591920781,54.04946067,107.36,107.3,111.8]
[1644591920868,54.04946067,107.36,107.28,0.024]
[1644591921068,54.04946067,107.36,107.27,0.024]
[1644591921669,54.04946067,107.36,107.27,2.40766791]
[1644591921868,46.72,107.35,107.27,2.40766791]
[1644591922068,13.9856,107.34,107.27,2.40766791]
[1644591922468,26.77265132,107.33,107.27,45.35205585]
[1644591922668,26.77265132,107.33,107.27,45.32805585]
[1644591923068,13.9854,107.35,107.27,45.32805585]
[1644591923268,47.9706,107.38,107.27,60.27571273]
[1644591923483,47.9706,107.38,107.28,11.16]
[1644591923683,47.9706,107.38,107.29,4.658]
[1644591923885,47.9706,107.38,107.29,7.06566791]
[1644591924084,48.61380637,107.37,107.3,39.00602963]
[1644591924284,48.61380637,107.37,107.3,41.63969754]
[1644591924486,66.6088,107.38,107.31,2.38366791]
[1644591924686,61.9508,107.38,107.31,2.63366791]
[1644591925087,61.9508,107.38,107.32,2.38366791]
[1644591925286,13.9802,107.38,107.32,2.38366791]
[1644591925487,13.9802,107.38,107.33,46.28423115]
[1644591926093,13.9789,107.39,107.33,46.28423115]
[1644591926492,4.658,107.41,107.33,46.28423115]
[1644591926690,48.738,107.43,107.34,13.04066791]
[1644591926890,48.738,107.43,107.34,24.20066791]
[1644591927091,84.27430363,107.43,107.35,38.048726]
[1644591927294,35.53630363,107.43,107.35,52.271826]
[1644591927491,35.53630363,107.43,107.36,18.19866791]
[1644591927691,13.9735,107.44,107.37,48.8191139]
[1644591927894,13.9735,107.44,107.37,51.20278181]
[1644591928091,75.0534,107.47,107.38,2.38366791]
[1644591928494,31.96872,107.47,107.38,2.63366791]
[1644591928691,31.96872,107.47,107.39,59.86078576]
[1644591928891,27.31372,107.47,107.39,62.24445367]
[1644591929096,27.31372,107.47,107.4,2.38366791]
[1644591929291,3.48902,107.47,107.4,2.63366791]
[1644591929492,3.48902,107.47,107.4,16.35016791]
[1644591930492,40.29058466,107.46,107.41,48.26717555]
[1644591930695,43.77960466,107.46,107.41,48.26717555]
[1644591931895,43.77960466,107.46,107.4,2.38366791]
[1644591932097,6.0,107.45,107.37,13.54366791]
[1644591932296,8.14402,107.44,107.36,11.16]
[1644591932597,3.48902,107.44,107.37,4.655]
[1644591932803,3.48902,107.44,107.38,13.9694]
[1644591932996,3.48902,107.44,107.39,15.815]
[1644591933195,3.48902,107.44,107.39,24.44866791]
[1644591933596,3.48902,107.44,107.4,37.84496922]
[1644591933797,3.48902,107.44,107.4,67.87376922]
[1644591933997,4.654,107.51,107.4,67.87376922]
[1644591934199,3.48902,107.5,107.41,8.38366791]
[1644591934395,3.48902,107.5,107.42,4.652]
[1644591934596,3.48902,107.5,107.42,7.03566791]
[1644591934800,3.48902,107.5,107.43,57.14314359]
[1644591934997,3.48902,107.5,107.45,50.09907088]
[1644591935199,3.48902,107.5,107.45,61.50907088]
[1644591935397,0.03545292,107.53,107.46,41.38366791]
[1644591935599,4.652,107.55,107.47,11.16]
[1644591935600,0.03545292,107.55,107.47,11.16]
[1644591935898,1.31316022,107.59,107.49,83.0]
[1644591936098,4.65,107.6,107.49,83.0]
[1644591936099,2.63113131,107.63,107.52,0.47]
[1644591936299,4.649,107.64,107.53,11.63]
[1644591936600,41.88654459,107.63,107.54,62.68947601]
[1644591936800,46.44854459,107.63,107.54,58.29247601]
[1644591937000,46.44854459,107.63,107.54,60.42614392]
[1644591937199,14.55428134,107.62,107.54,11.16]
[1644591937397,4.647,107.61,107.51,11.16]
[1644591937597,10.647,107.61,107.51,11.16]
[1644591937997,6.0,107.61,107.51,11.16]
[1644591938198,6.0,107.61,107.52,47.24971406]
[1644591938199,35.8178855,107.61,107.52,47.24971406]
[1644591938397,35.8178855,107.61,107.53,11.16]
[1644591938600,4.648,107.6,107.5,15.807]
[1644591938800,4.648,107.6,107.5,11.16]
[1644591939001,14.5198229,107.59,107.5,11.16]
[1644591939200,4.649,107.58,107.5,11.16]
[1644591939505,4.649,107.58,107.51,46.55255185]
[1644591939701,10.649,107.61,107.51,57.71255185]
[1644591939901,6.0,107.61,107.51,64.74421976]
[1644591940304,4.648,107.6,107.51,60.09621976]
[1644591940501,4.648,107.6,107.53,44.51156759]
[1644591940702,18.5999,107.62,107.53,55.92156759]
[1644591941204,35.56589328,107.61,107.53,55.92156759]
[1644591941403,10.648,107.6,107.53,55.67156759]
[1644591941602,36.13853681,107.59,107.5,11.16]
[1644591941802,4.649,107.58,107.5,11.16]
[1644591942006,4.649,107.58,107.47,11.16]
[1644591942204,4.649,107.58,107.5,2.38366791]
[1644591942404,4.65,107.61,107.51,11.16]
[1644591942603,4.649,107.62,107.51,15.809]
[1644591942806,4.649,107.62,107.52,2.38366791]
[1644591943105,4.649,107.62,107.52,11.16]
[1644591943306,51.46487368,107.61,107.53,46.09475445]
[1644591943503,4.648,107.6,107.53,46.09475445]
[1644591943706,26.23955641,107.59,107.52,11.16]
[1644591943907,4.648,107.58,107.48,11.16]
[1644591944307,4.648,107.58,107.48,11.41]
[1644591944510,4.648,107.58,107.48,25.364]
[1644591944713,4.648,107.58,107.49,49.2234309]
[1644591945009,28.2922,107.6,107.5,11.16]
[1644591945206,4.649,107.6,107.5,11.41]
[1644591945406,4.649,107.62,107.5,13.79366791]
[1644591945606,6.0,107.59,107.5,11.41]
[1644591945808,6.0,107.58,107.5,11.41]
[1644591946010,35.43826041,107.6,107.51,37.98631624]
[1644591946209,35.43826041,107.6,107.52,11.16]
[1644591946408,40.08626041,107.6,107.53,36.80601164]
[1644591946610,4.648,107.6,107.53,47.96601164]
[1644591946809,4.648,107.6,107.53,48.21601164]
[1644591947012,4.648,107.6,107.54,2.38366791]
[1644591947213,4.648,107.64,107.55,11.16]
[1644591947608,41.69576864,107.63,107.56,42.39688327]
[1644591947809,41.69576864,107.63,107.56,42.64688327]
[1644591948212,95.1457,107.65,107.56,42.64688327]
[1644591948410,70.6703,107.66,107.56,56.19055118]
[1644591948609,6.0,107.64,107.56,56.19055118]
[1644591948809,6.0,107.65,107.56,56.19055118]
[1644591949016,10.646,107.65,107.56,56.19055118]
[1644591949209,55.95114863,107.65,107.56,56.19055118]
[1644591949412,10.646,107.65,107.56,56.19055118]
[1644591949634,10.646,107.65,107.56,70.13445118]
[1644591950031,4.646,107.65,107.57,4.646]
[1644591950233,4.646,107.69,107.58,11.16]
[1644591950432,4.646,107.69,107.6,40.35910586]
[1644591950631,4.644,107.7,107.61,11.16]
[1644591951032,14.46636823,107.69,107.61,11.16]
[1644591951334,4.644,107.68,107.6,51.51910586]
[1644591951533,4.644,107.68,107.6,51.76910586]
[1644591951733,6.0,107.67,107.6,51.76910586]
[1644591952134,6.0,107.67,107.62,44.18237753]
[1644591952334,4.67974633,107.7,107.62,44.43237753]
[1644591952534,48.523,107.71,107.63,11.16]
[1644591952535,4.71549266,107.71,107.63,11.16]
[1644591952733,0.46632466,107.74,107.63,24.43766791]
[1644591952934,0.03618659,107.72,107.64,0.47]
[1644591953133,39.39280383,107.73,107.65,11.16]
[1644591953332,0.50251125,107.74,107.66,6.0]
[1644591953535,0.50251125,107.74,107.67,11.16]
[1644591953732,0.46632466,107.74,107.67,11.16]
[1644591953932,4.642,107.73,107.67,11.16]
[1644591954133,4.642,107.73,107.64,41.3472139]
[1644591954332,48.23550978,107.72,107.64,52.5072139]
[1644591954534,54.23550978,107.72,107.64,52.5072139]
[1644591954736,48.23550978,107.72,107.64,52.5072139]
[1644591955335,0.50251125,107.74,107.64,52.5072139]
[1644591955336,40.62041387,107.7,107.64,52.5072139]
[1644591955736,0.03618659,107.72,107.64,52.7572139]
[1644591955937,0.46632466,107.74,107.64,52.7572139]
[1644591955938,4.643,107.71,107.64,52.7572139]
[1644591956235,4.643,107.73,107.64,52.5072139]
[1644591956734,0.50251125,107.74,107.64,55.14088181]
[1644591956935,45.89320538,107.73,107.65,4.642]
[1644591957134,45.89320538,107.73,107.66,58.42685604]
[1644591957336,50.53520538,107.73,107.66,58.42685604]
[1644591957536,4.642,107.73,107.66,58.42685604]
[1644591957738,0.46632466,107.74,107.66,61.06052395]
[1644591958142,0.46632466,107.74,107.66,58.67685604]
[1644591958537,36.74268446,107.74,107.66,58.67685604]
[1644591958737,43.90962822,107.72,107.66,58.67685604]
[1644591958937,38.23582015,107.7,107.66,58.42685604]
[1644591959137,38.23582015,107.7,107.66,47.26685604]
[1644591960137,4.643,107.71,107.66,47.26685604]
[1644591960539,4.643,107.71,107.64,4.642]
[1644591960739,18.5821,107.71,107.59,11.16]
[1644591960943,18.5821,107.71,107.53,16.38114035]
[1644591960944,13.9391,107.71,107.53,13.7678]
[1644591961141,53.17468659,107.7,107.55,6.0]
[1644591961337,0.03618659,107.69,107.56,11.16]
[1644591961540,6.03618659,107.69,107.58,46.5348599]
[1644591961742,0.03618659,107.69,107.6,35.37062371]
[1644591961941,0.03618659,107.7,107.6,46.53062371]
[1644591962141,0.03618659,107.73,107.61,13.49766791]
[1644591962339,0.03618659,107.72,107.62,11.16]
[1644591962541,0.03618659,107.72,107.63,4.643]
[1644591962738,4.67918659,107.73,107.64,11.16]
[1644591963040,0.50251125,107.74,107.65,41.4064675]
[1644591963239,0.46632466,107.74,107.65,58.5664675]
[1644591963438,6.46632466,107.74,107.65,58.5664675]
[1644591963739,0.46632466,107.74,107.65,58.5664675]
[1644591963940,4.642,107.73,107.65,58.5664675]
[1644591964138,0.46632466,107.74,107.65,52.5664675]
[1644591964339,39.62827887,107.72,107.65,52.8164675]
[1644591964539,39.62827887,107.72,107.65,52.5664675]
[1644591964739,4.643,107.71,107.65,41.4064675]
[1644591964940,0.03618659,107.73,107.65,41.6564675]
[1644591965141,0.46632466,107.74,107.65,41.6564675]
[1644591965142,0.46632466,107.74,107.66,18.18566791]
[1644591965338,0.46632466,107.74,107.66,24.43566791]
[1644591965542,5.10832466,107.74,107.67,2.38366791]
[1644591965738,43.18735023,107.73,107.68,41.93889508]
[1644591965942,4.642,107.72,107.68,41.93889508]
[1644591966142,4.642,107.73,107.68,41.93889508]
[1644591966339,0.46632466,107.74,107.68,41.93889508]
[1644591966741,0.46632466,107.74,107.63,4.642]
[1644591966941,0.46632466,107.74,107.64,11.16]
[1644591967141,4.643,107.73,107.64,19.54366791]
[1644591967341,4.643,107.73,107.64,13.54366791]
[1644591967542,0.50251125,107.74,107.64,11.16]
[1644591967746,34.56169446,107.73,107.65,44.42386027]
[1644591968143,4.642,107.72,107.65,44.42386027]
[1644591968441,48.4231933,107.71,107.65,44.42386027]
[1644591968642,54.4231933,107.71,107.65,44.42386027]
[1644591968844,4.643,107.7,107.65,44.42386027]
[1644591969042,54.4231933,107.71,107.62,11.16]
[1644591969241,54.45937989,107.71,107.62,11.16]
[1644591969442,18.5842,107.7,107.58,13.54366791]
[1644591969642,0.03618659,107.69,107.59,6.0]
[1644591969843,18.62038659,107.7,107.59,6.25]
[1644591970043,36.3429688,107.69,107.6,37.277242]
[1644591970246,36.3429688,107.69,107.6,48.687242]
[1644591970645,40.9869688,107.69,107.6,15.804]
[1644591970845,40.9869688,107.69,107.57,15.804]
[1644591971045,0.03618659,107.68,107.57,4.644]
[1644591971244,4.644,107.67,107.54,4.644]
[1644591971445,0.03618659,107.66,107.53,13.6843]
[1644591971644,47.06854628,107.66,107.54,43.79704796]
[1644591971847,45.41417737,107.64,107.54,43.79704796]
[1644591972047,38.41327011,107.62,107.54,43.79704796]
[1644591972852,6.03618659,107.63,107.54,43.79704796]
[1644591973050,0.03618659,107.64,107.55,4.647]
[1644591973246,0.03618659,107.65,107.55,10.647]
[1644591973446,24.105,107.68,107.55,10.647]
[1644591973447,0.03618659,107.67,107.56,28.33422072]
[1644591973646,0.03618659,107.65,107.56,28.33422072]
[1644591973846,47.42237218,107.66,107.57,44.98050768]
[1644591974048,47.45855877,107.66,107.57,49.62650768]
[1644591974346,0.03618659,107.67,107.58,11.16]
[1644591974549,4.68218659,107.71,107.59,4.644]
[1644591974747,0.03618659,107.69,107.59,33.22822072]
[1644591974950,4.644,107.68,107.59,28.58422072]
[1644591975147,47.31776365,107.67,107.6,40.58174672]
[1644591975352,51.96176365,107.67,107.6,35.93774672]
[1644591975747,65.90536365,107.67,107.6,35.93774672]
[1644591976351,18.5876,107.67,107.6,35.93774672]
[1644591976653,18.61898659,107.71,107.6,35.93774672]
[1644591976852,18.61898659,107.71,107.58,13.77334035]
[1644591977051,17.16,107.7,107.57,2.61334035]
[1644591977251,4.68018659,107.69,107.57,2.61334035]
[1644591977452,4.68018659,107.69,107.56,11.16]
[1644591977651,15.84018659,107.69,107.57,6.0]
[1644591977854,37.47983339,107.68,107.57,42.88133204]
[1644591978052,4.644,107.67,107.55,15.804]
[1644591978252,29.78628659,107.67,107.54,7.25734035]
[1644591978453,0.03618659,107.66,107.55,4.12308277]
[1644591978653,4.646,107.65,107.54,4.644]
[1644591978852,15.806,107.65,107.54,4.644]
[1644591979053,39.07520656,107.64,107.55,34.79980466]
[1644591979254,11.19618659,107.65,107.55,35.04980466]
[1644591979255,40.16797454,107.62,107.55,35.04980466]
[1644591979655,40.16797454,107.62,107.57,45.06380648]
[1644591979854,40.16797454,107.62,107.53,4.897]
[1644591980056,40.16797454,107.62,107.53,4.647]
[1644591980255,38.74797454,107.62,107.53,22.07122072]
[1644591980656,38.74797454,107.62,107.54,11.16]
[1644591980958,35.03902201,107.6,107.54,41.51214684]
[1644591981556,35.03902201,107.6,107.53,4.647]
[1644591981757,35.03902201,107.6,107.51,11.16]
[1644591981758,4.648,107.59,107.51,11.16]
[1644591981956,4.648,107.59,107.49,7.26134035]
[1644591982158,4.648,107.59,107.48,7.26234035]
[1644591982358,39.68802201,107.6,107.48,7.26234035]
[1644591982557,39.68802201,107.6,107.49,38.60204306]
[1644591982757,39.68802201,107.6,107.51,45.94095175]
[1644591982960,57.40518659,107.61,107.51,45.94095175]
[1644591983158,4.68418659,107.63,107.52,4.648]
[1644591983385,4.68318659,107.64,107.53,11.16]
[1644591983662,0.03618659,107.62,107.53,28.33422072]
[1644591983860,6.0,107.63,107.53,28.58422072]
[1644591984058,57.94077176,107.63,107.54,42.8129254]
[1644591984261,51.90458517,107.63,107.54,56.60659331]
[1644591984758,37.95628517,107.63,107.56,43.22930632]
[1644591985159,51.90458517,107.63,107.56,43.47930632]
[1644591986358,51.90458517,107.63,107.56,45.86297423]
[1644591986557,51.90458517,107.63,107.56,43.47930632]
[1644591988164,51.90458517,107.63,107.56,43.22930632]
[1644591988765,51.90458517,107.63,107.53,15.807]
[1644591988965,51.90458517,107.63,107.53,11.16]
[1644591988966,10.647,107.62,107.53,11.16]
[1644591989165,10.647,107.62,107.5,64.3341]
[1644591989464,13.9539,107.59,107.5,11.16]
[1644591989666,39.19077795,107.58,107.51,39.41719349]
[1644591989865,48.4844,107.61,107.51,44.06619349]
[1644591990063,48.4844,107.61,107.51,55.47619349]
[1644591990264,4.648,107.6,107.51,50.57719349]
[1644591990467,18.601,107.6,107.51,50.57719349]
[1644591990889,48.5060479,107.59,107.51,39.41719349]
[1644591991066,4.649,107.58,107.51,39.41719349]
[1644591991263,4.649,107.58,107.49,11.16]
[1644591991264,46.61388049,107.57,107.49,11.16]
[1644591991467,46.61388049,107.57,107.49,11.41]
[1644591991664,46.61388049,107.57,107.5,4.649]
[1644591992365,46.61388049,107.57,107.5,44.68073457]
[1644591992967,46.61388049,107.57,107.5,40.03173457]
[1644591993270,60.56968049,107.57,107.48,11.16]
[1644591993467,4.65,107.56,107.48,11.16]
[1644591993669,60.56968049,107.57,107.48,11.16]
[1644591993670,46.61388049,107.57,107.51,2.38366791]
[1644591993865,46.61388049,107.57,107.51,13.54366791]
[1644591994066,46.61388049,107.57,107.51,49.96486819]
[1644591994267,46.61388049,107.57,107.52,2.38366791]
[1644591994467,46.61388049,107.57,107.53,36.4864332]
[1644591994867,46.61388049,107.57,107.5,13.54366791]
[1644591995067,4.649,107.56,107.49,4.649]
[1644591995268,46.61388049,107.57,107.49,3.64037]
[1644591995468,13.962,107.54,107.44,4.65]
[1644591995667,13.962,107.54,107.39,24.6599]
[1644591995668,4.651,107.53,107.42,11.16]
[1644591995972,41.87714035,107.52,107.43,43.0656067]
[1644591996169,40.64796083,107.5,107.43,43.0656067]
[1644591996568,40.64796083,107.5,107.43,50.10127461]
[1644591996768,40.64796083,107.5,107.43,45.44927461]
[1644591997170,40.64796083,107.5,107.43,43.0656067]
[1644591997369,40.64796083,107.5,107.41,15.812]
[1644591997569,4.652,107.49,107.4,11.16]
[1644591997773,13.9694,107.47,107.38,4.652]
[1644591997971,4.654,107.46,107.37,0.024]
[1644591998173,4.654,107.46,107.34,17.21312791]
[1644591998401,44.03646919,107.45,107.35,0.024]
[1644591998574,4.655,107.44,107.35,0.024]
[1644591998772,41.872118,107.42,107.35,0.024]
[1644591998972,41.872118,107.42,107.36,2.38366791]
[1644591999176,41.872118,107.42,107.37,37.18834763]
[1644591999373,41.872118,107.42,107.36,2.38366791]
[1644591999573,41.872118,107.42,107.38,2.38366791]
[1644591999775,41.872118,107.42,107.36,2.38366791]
[1644592000374,41.872118,107.42,107.37,40.09991437]
[1644592000873,4.655,107.46,107.37,47.38858228]
[1644592001075,47.4226,107.47,107.37,47.13858228]
[1644592001272,47.4226,107.47,107.37,40.37391437]
[1644592001273,6.0,107.46,107.37,40.37391437]
[1644592001473,10.654,107.46,107.38,2.38366791]
[1644592001673,10.654,107.46,107.37,40.12391437]
[1644592001873,39.43061116,107.45,107.37,40.34991437]
[1644592002075,39.43061116,107.45,107.37,40.09991437]
[1644592003277,53.40361116,107.45,107.37,40.34991437]
[1644592004775,52.0776,107.47,107.37,40.34991437]
[1644592004776,66.0476,107.47,107.38,2.38366791]